Cogmind - Beta 14 *** ADVENTURER MODE // 2024.09.25 @ 18:15:33 Player: Knightshade Result: Self-destructed Performance ------------- Evolutions (1) 500 Regions Visited (3) 600 Robots Destroyed (63) 315 Value Destroyed (1600) 1600 Prototype IDs (10) 200 Alien Tech Used (0) 0 Bonus (8) 8 TOTAL SCORE: 3223 Bonus ------- High Alert Combat Kills 8 Cogmind --------- Core Integrity 244/400 Matter 280/300 Energy 12/100 System Corruption 1% Temperature Cool (9) Movement Rolling (195) Ox7 Location -9/Storage Parts ------- > --- POWER (1) -------- (None) > --- PROPULSION (3) --- Improved Treads Armored Wheel > --- UTILITY (3) ------ Improved Heat Sink Huge Storage Unit Light Armor Plating > --- WEAPON (2) ------- Advanced Beam Cannon Advanced Beam Cannon > --- INVENTORY (25) --- Wheel Armored Wheel Cryofiber Web Medium Storage Unit Compact Battery (200) Compact Battery (200) Advanced Targeting Computer Light Armor Plating Light Armor Plating Hacking Suite Hacking Suite System Shield System Shield System Shield System Shield Improved EM Shotgun Rocket Launcher Rocket Launcher Datajack Plasma Cutter Peak State ------------ > --- POWER ------------ Ion Engine > --- PROPULSION ------- Improved Treads Improved Treads Improved Treads > --- UTILITY ---------- Improved Heat Sink Huge Storage Unit Light Armor Plating > --- WEAPON ----------- Improved EM Shotgun Improved EM Shotgun > --- INVENTORY -------- Light Treads Wheel Armored Wheel Armored Wheel Cryofiber Web Medium Storage Unit Compact Battery Compact Battery Visual Processing Unit Light Armor Plating Light Armor Plating Light Armor Plating Hacking Suite Hacking Suite System Shield System Shield System Shield System Shield Improved EM Shotgun Advanced Beam Cannon Rocket Launcher Rocket Launcher Datajack Plasma Cutter [Rating: 23] Favorites ----------- Power Ion Engine Engine Ion Engine Propulsion Improved Treads Treads Improved Treads Wheel Wheel Utility Huge Storage Unit Device Improved Heat Sink Storage Huge Storage Unit Protection Light Armor Plating Weapon Light Assault Rifle Energy Gun Beam Rifle Energy Cannon Advanced Beam Cannon Ballistic Gun Light Assault Rifle Launcher Grenade Launcher Special Melee Weapon Datajack Build | -11 -10 -9 -9 ------- Run | Yrd Mat Mat Sto Slots Evolved 2 | . . 2 . Power . | . . . . Propulsion 1 | . . 1 . Utility 1 | . . 1 . Weapon . | . . . . Parts Attached 31 | 6 9 12 4 Power 2 | 1 1 . . Engine 2 | 1 1 . . Core . | . . . . Reactor . | . . . . Propulsion 9 | 2 2 4 1 Treads 6 | 2 . 4 . Leg . | . . . . Wheel 3 | . 2 . 1 Hover . | . . . . Flight . | . . . . Utility 6 | 1 2 2 1 Device 2 | . 1 1 . Storage 2 | 1 1 . . Processor . | . . . . Hackware . | . . . . Protection 2 | . . 1 1 Artifact . | . . . . Weapon 14 | 2 4 6 2 Energy Gun 5 | . . 5 . Energy Cannon 2 | . . . 2 Ballistic Gun 4 | 2 2 . . Ballistic Cannon . | . . . . Launcher 1 | . 1 . . Special Weapon . | . . . . Impact Weapon . | . . . . Slashing Weapon . | . . . . Piercing Weapon . | . . . . Special Melee Weapon 2 | . 1 1 . Unidentified Prototypes . | . . . . Parts Lost 8 | . 1 1 6 Power 2 | . 1 . 1 Propulsion 2 | . . . 2 Utility 2 | . . 1 1 Weapon 2 | . . . 2 Highest Loss Streak 6 | . 1 1 6 To Critical Strikes . | . . . . Average Slot Usage (%) 98 | . 99 98 96 Engine 11 | . 13 11 9 Treads 24 | . 8 31 31 Wheel 6 | . 19 1 1 Device 14 | . 13 15 11 Storage 11 | . 14 11 11 Protection 3 | . . 5 11 Energy Gun 14 | . . 19 20 Ballistic Gun 8 | . 27 1 . Peak Build Rating 23 | 6 10 23 23 Average Rating 16 | 4 8 19 22 On Entrance 9 | . 6 10 23 Naked Turns . | . . . . Heaviest Build 95 | 10 88 95 95 Greatest Support 69 | 40 40 69 69 Greatest Overweight (x) 7 | . 4 4 7 Average Overweight (x) 1 | . 3 1 1 Largest Inventory Capacity 25 | 8 25 25 25 Average Capacity 23 | 7 19 25 25 Most Carried 25 | 4 25 25 24 Average Carried 21 | 1 14 24 23 Final Capacity 25 | 8 25 25 25 Final Carried 25 | 3 25 24 20 Class Distribution -------------------- 56% | Mutant 43% | Scavenger-Mutant Dominant Class ---------------- Mutant | -10/Materials Scavenger-Mutant | -9/Materials Mutant | -9/Storage Resources | -11 -10 -9 -9 ----------- Run | Yrd Mat Mat Sto Matter Collected 636 | 280 211 145 . Remotely . | . . . . Salvage Created 2249 | 109 528 1016 596 Parts 131 | 5 41 52 33 Haulers Intercepted 6 | . 2 4 . Recyclers Shooed 1 | . . 1 . Parts Field Recycled . | . . . . Retrieved Matter . | . . . . Parts Self-Destructed . | . . . . Prevented . | . . . . Kills | -11 -10 -9 -9 ------- Run | Yrd Mat Mat Sto Combat Hostiles Destroyed 43 | . 13 19 11 Guns 38 | . 10 19 9 Cannons 1 | . . . 1 AOE 4 | . 3 . 1 Classes Destroyed 11 | 2 5 3 1 Worker 1 | . . . 1 Builder 2 | . 2 . . Tunneler 1 | 1 . . . Hauler 6 | . 2 4 . Recycler 1 | 1 . . . Mechanic 1 | . . 1 . Operator 3 | . . 3 . Watcher 5 | . 2 2 1 Swarmer 12 | . 6 6 . Grunt 21 | . 7 7 7 Sentry 10 | . . 6 4 Best Kill Streak 6 | 1 3 6 6 Combat Bots Only 6 | . 3 5 6 Max Kills in Single Turn 2 | 1 2 1 2 Gunslinging . | . . . . Exploded 2 | . 2 . 1 Melee . | . . . . Uniques/NPCs Destroyed . | . . . . Combat | -11 -10 -9 -9 -------- Run | Yrd Mat Mat Sto Hostile Shots Fired 210 | . 57 67 86 Missed 62 | . 16 20 26 Damage Taken 1430 | . 327 460 643 Core 194 | . 38 67 89 Absorbed by Shields . | . . . . Ignored by Resistances 428 | . 107 135 186 Core Remaining (%) 92 | 100 84 . . Volleys Fired 154 | 10 54 67 23 Largest 2 | 2 2 2 2 Hottest 121 | 40 50 121 113 Shots Fired 307 | 20 108 134 45 Gun 302 | 20 106 134 42 Cannon 3 | . . . 3 Launcher 2 | . 2 . . Special . | . . . . Kinetic 142 | 20 106 16 . Thermal 111 | . . 108 3 Explosive 2 | . 2 . . Electromagnetic 52 | . . 10 42 Robot Hit Streak 29 | 14 18 20 29 Robot Miss Streak 4 | 1 2 2 4 Penetration Max . | . . . . Secondary Targets 8 | . 3 2 3 Max Gunslinging Chain 1 | . 1 1 1 Shots Hit Robots 250 | 18 82 107 43 Core Hits 112 | 4 38 43 27 Critical Kills 1 | . 1 . . Critical Parts Destroyed . | . . . . Critical Strikes 8 | . 1 7 . Burn 7 | . . 7 . Destroy 1 | . 1 . . Melee Attacks 1 | . . 1 . Impact . | . . . . Slashing . | . . . . Piercing . | . . . . Sneak Attacks 1 | . . 1 . Combat Hostiles . | . . . . Follow-up Attacks . | . . . . Damage Inflicted 3590 | 143 901 1531 1015 Guns 3054 | 143 669 1511 731 Cannons 62 | . . . 62 Explosions 474 | . 232 20 222 Melee . | . . . . Ramming . | . . . . Kinetic 903 | 143 669 91 . Thermal 1566 | . . 1282 284 Explosive 232 | . 232 . . Electromagnetic 889 | . . 158 731 Impact . | . . . . Slashing . | . . . . Piercing . | . . . . Highest Corruption 1 | . . 1 1 Average Corruption 1 | . . 1 1 Corruption Purged . | . . . . Corruption Blocked . | . . . . Effects 12 | . . 11 1 Message Errors 4 | . . 3 1 Matter Fused 1 | . . 1 . Heat Flow Errors 3 | . . 3 . Energy Discharges 1 | . . 1 . Data Loss (minor) 3 | . . 3 . Overload Shots . | . . . . Overflow Damage 15 | . 10 . 5 Projectiles . | . . . . Explosions 15 | . 10 . 5 Melee . | . . . . Knockbacks . | . . . . Impact . | . . . . Kinetic . | . . . . Secondary . | . . . . Self-Inflicted Damage 27 | . . 27 . Shots 1 | . . 1 . Rammed . | . . . . Targets Rammed . | . . . . Kicked . | . . . . Crushed . | . . . . Highest Temperature 246 | . 40 246 62 Average Temperature 27 | . 14 31 19 Received Heat Transfer 777 | . 210 219 348 Siege Activations . | . . . . Robots Corrupted . | . . . . Combat Hostiles . | . . . . Parts Fried 3 | . . 1 2 Impact Corruptions . | . . . . Robots Melted . | . . . . Combat Hostiles . | . . . . Parts Melted 7 | . . 7 . Heat Transferred 4174 | . . 3713 461 Parts Sabotaged . | . . . . Parts Stolen . | . . . . Parts Stripped . | . . . . Power Chain Reactions 6 | . . 1 5 Alert | -11 -10 -9 -9 ------- Run | Yrd Mat Mat Sto Peak Influence 406 | 10 184 248 406 Initial 23 | . 5 23 . Average 60 | 3 64 53 199 Maximum Alert Level 2 | . . 1 2 Low Security (%) 94 | 100 100 95 40 Level 1 5 | . . 4 55 Level 2 . | . . . 3 Level 3 . | . . . . Level 4 . | . . . . Level 5 . | . . . . High Security . | . . . . Max Security . | . . . . Squads Dispatched 10 | . 1 4 5 Investigation 2 | . 1 1 . Extermination . | . . . . Reinforcement 6 | . . 3 3 Assault 1 | . . . 1 Garrison 1 | . . . 1 Intercept . | . . . . Searches Triggered . | . . . . Construction Impeded . | . . . . Haulers Reinforced . | . . . . Active Scanning Responses . | . . . . Cargo Convoy Interrupts . | . . . . Stealth | -11 -10 -9 -9 --------- Run | Yrd Mat Mat Sto Distress Signals 5 | . 1 2 2 Communications Jammed . | . . . . Distress Signals . | . . . . Times Spotted 60 | . 20 25 15 Peak Tracking Total 8 | . 4 5 8 Tactical Retreats 4 | . 1 3 . Traps | -11 -10 -9 -9 ------- Run | Yrd Mat Mat Sto Traps Triggered 3 | . 1 2 . Indirectly . | . . . . Trap Hack Attempts 22 | . 1 21 . Triggered . | . . . . Disarmed 4 | . 1 3 . Reprogrammed . | . . . . Reused . | . . . . Traps Extracted . | . . . . Installed . | . . . . Triggered . | . . . . Machines | -11 -10 -9 -9 ---------- Run | Yrd Mat Mat Sto Machines Disabled 1 | . . . 1 Max in Single Turn 1 | . . . 1 Garrison Access 1 | . . . 1 Machines Repaired . | . . . . Machines Dismantled . | . . . . Machines Sabotaged . | . . . . Overloaded Fab Kills . | . . . . Hacking | -11 -10 -9 -9 --------- Run | Yrd Mat Mat Sto Machines Accessed 22 | . 10 10 2 Terminals 18 | . 8 8 2 Fabricators . | . . . . Repair Stations . | . . . . Recycling Units 3 | . 2 1 . Scanalyzers 1 | . . 1 . Garrison Access . | . . . . Total Hacks 67 | . 29 30 8 Successful 45 | . 22 21 2 Failed 22 | . 7 9 6 Catastrophic 1 | . 1 . . Database Lockouts . | . . . . Manual 37 | . 15 18 4 Terminals 58 | . 25 25 8 Fabricators . | . . . . Repair Stations . | . . . . Recycling Units 5 | . 4 1 . Scanalyzers 4 | . . 4 . Garrison Access . | . . . . Terminal Hacks 22 | . 14 8 . Robot Analysis 1 | . 1 . . Prototype ID Bank 7 | . 5 2 . Branch Access Points 2 | . 1 1 . Machine Index 1 | . . 1 . Terminal Index 2 | . 1 1 . Alert Level 1 | . 1 . . Locate Traps 2 | . 2 . . Dispatch Records 1 | . 1 . . Transport Status 1 | . . 1 . Hauler Manifests 2 | . . 2 . Registered Components 1 | . 1 . . Registered Prototypes 1 | . 1 . . Fabricator Hacks . | . . . . Repair Station Hacks . | . . . . Recycling Unit Hacks 4 | . 3 1 . Report Inventory 3 | . 2 1 . Retrieve Components 1 | . 1 . . Scanalyzer 3 | . . 3 . Insert Component 2 | . . 2 . Analyze 1 | . . 1 . Garrison Access Hacks . | . . . . Unauthorized Hacks 16 | . 5 9 2 Terminals 16 | . 5 9 2 Track 1 | . . 1 . Botnet 14 | . 5 7 2 Operators 1 | . . 1 . Fabricators . | . . . . Repair Stations . | . . . . Recycling Units . | . . . . Scanalyzers . | . . . . Garrison Access . | . . . . Data Cores Recovered . | . . . . Used . | . . . . Hacking Detections 19 | . 9 8 2 Full Trace Events 1 | . 1 . . Feedback Events . | . . . . Feedback Blocked . | . . . . Robot Schematics Acquired . | . . . . Robots Built . | . . . . Authchips . | . . . . Time . | . . . . Total Robot Build Rating . | . . . . Part Schematics Acquired 1 | . . 1 . Parts Built . | . . . . Authchips . | . . . . Time . | . . . . Total Part Build Rating . | . . . . Parts Repaired . | . . . . Time . | . . . . Parts Recycled . | . . . . Recycled Matter . | . . . . Retrieved Matter . | . . . . Retrieved Components 10 | . 10 . . Parts Scanalyzed 1 | . . 1 . Part Schematics Acquired 1 | . . 1 . Parts Damaged . | . . . . Bothacking | -11 -10 -9 -9 ------------ Run | Yrd Mat Mat Sto Used RIF Installer . | . . . . Robots Hacked . | . . . . Non-combat . | . . . . Combat . | . . . . Robot Hacks Applied . | . . . . Relay Couplers Released 2 | . . . 2 Machine Destruction 2 | . . . 2 Fabnet Peak Effective % . | . . . . Robots Rewired . | . . . . Allies Hacked . | . . . . Hacks Repelled . | . . . . Allies | -11 -10 -9 -9 -------- Run | Yrd Mat Mat Sto Total Allies . | . . . . Largest Group . | . . . . Highest-Rated Group . | . . . . Highest-Rated Ally . | . . . . Total Orders . | . . . . Ally Attacks . | . . . . Total Damage . | . . . . Kills . | . . . . Allies Corrupted . | . . . . Allies Melted . | . . . . Intel | -11 -10 -9 -9 ------- Run | Yrd Mat Mat Sto Robot Analysis Total 1 | . 1 . . Derelict Logs Recovered . | . . . . Drone Launches . | . . . . Drone Recoveries . | . . . . Exploration | -11 -10 -9 -9 ------------- Run | Yrd Mat Mat Sto Turns Passed 4920 | 121 1312 3317 170 Spaces Moved 2053 | 54 708 1250 41 Core 5 | 5 . . . Treads 1389 | 49 175 1125 40 Legs . | . . . . Wheels 659 | . 533 125 1 Hover . | . . . . Flight . | . . . . Fastest Speed 50 | 50 140 140 195 Average Speed 198 | 149 145 230 238 Slowest Speed 320 | 160 320 240 240 Overloaded Moves . | . . . . Propulsion Burnouts . | . . . . Robots Hopped . | . . . . Cave-ins Triggered . | . . . . Exploration Rate (%) 53 | 5 95 94 18 Regions Visited 3 Branch Regions 1 Pre-discovered Areas . | . . . . Known Exits Taken 1 | . . 1 . Unknown Exits Taken 2 | 1 1 . . Scrap Searched . | . . . . Spaces Dug . | . . . . Terrain Destroyed 19 | . . 5 14 Melee . | . . . . Projectile . | . . . . AOE 19 | . . 5 14 Terrain Rammed . | . . . . Walls Destroyed . | . . . . Machines Disabled . | . . . . Actions | -11 -10 -9 -9 --------- Run | Yrd Mat Mat Sto Total 2622 | 78 903 1573 68 Wait 281 | . 104 177 . Move 2050 | 53 707 1249 41 Hop . | . . . . Pick Up 59 | 9 26 24 . Fast Attach . | . . . . Attach 16 | 6 2 4 4 Detach . | . . . . Swap 15 | . 7 8 . Drop 24 | . 2 22 . Fire 154 | 10 54 67 23 Melee 1 | . . 1 . Ram . | . . . . Kick . | . . . . Crush . | . . . . Escape Stasis . | . . . . Rewire . | . . . . Trap 22 | . 1 21 . Miscellaneous . | . . . . Route ------- -11/Scrapyard -10/Materials (discovered 4 exits: *Mat x3 / *Min) -9/Materials (discovered 5 exits: [*Mat x3] / *Min / *Sto) -9/Storage History --------- Turn | Location | Event 4 | -11/Scrapyard | Discovered new exit (range 15) 122 | -11/Scrapyard | Entered Materials 184 | -10/Materials | Discovered new exit (range 15) 310 | -10/Materials | Build established: Mutant 570 | -10/Materials | Discovered new exit (range 11) 739 | -10/Materials | Identified exit to Mines 823 | -10/Materials | Discovered new exit (range 13) 1401 | -10/Materials | Discovered new exit (range 4) 1434 | -10/Materials | Entered another Materials area 1434 | -9/Materials | Evolved 2 slots: Propulsion x1, Utility x1 2024 | -9/Materials | Build established: Scavenger-Mutant 2152 | -9/Materials | Discovered new exit (range 10) 2984 | -9/Materials | Discovered new exit (range 13) 3188 | -9/Materials | Discovered new exit (range 9) 3836 | -9/Materials | Discovered new exit (range 16) 4111 | -9/Materials | Identified exit to Mines 4111 | -9/Materials | Identified exit to Storage 4168 | -9/Materials | Build established: Mutant 4289 | -9/Materials | Discovered new exit (range 3) 4751 | -9/Materials | Entered Storage 4811 | -9/Storage | Garrison activated, responded to threat 4921 | -9/Storage | Self-destructed Last Messages --------------- 04892_ U-05 Engineer builds a Door. 04892_ K-01 Serf collects debris. 04893_ Ion Engine fried. 04893_ G-34 Mercenary destroyed. 04895_ K-01 Serf collects debris. 04896_ Chain reaction triggered in Ion Engine. 04896_ K-01 Serf destroyed. 04896_ G-34 Mercenary destroyed. 04901_ ALERT: Hostiles spotted, dispatching reinforcements to Terminal S004. 04902_ Critical hit (Burn: +37). 04902_ G-34 Mercenary misfires. 04905_ Heat Sink fried. 04905_ G-34 Mercenary destroyed. 04906_ Ion Engine destroyed. 04908_ Imp. EM Shotgun destroyed. 04908_ Imp. Treads destroyed. 04912_ Y-45 Defender destroyed. 04914_ Chain reaction triggered in Lgt. Nuclear Core. 04919_ Imp. EM Shotgun destroyed. Map ----- +----------------------------------------------------+ | #"" + ?????????? | | #"T # ?????????? | | #"" ### #####+#####????????????? | | # #?# # #????????????? | | ########?# + "??????????????????? | | ?????????# # ""??????????????????? | | ?????????# # ""???????????????????? | | ?????????# + "????????????????????? | | ?????????# # "????????????????????? | | ???####+## # """" #????????????? | | ???# + #????????????? | | ???# =!*###########????????????? | | ####+## !%!^%^ [ #####????????? | | # + [[=^%*=% ????????? | | # "!!%="[ *!] ????????? | | # #%!= " ^] ???????? | | # """ ==% ! ????????? | | # """ " [ ###???????????? | | # """ " #?????????????? | | # + #?????????????? | | ## #### #"T"## #?????????????? | | ?#????# #"""#? #?????????????? | | ??????# = #####?? #?????????????? | | ??????#;##+;#;### #?????????????? | | ??????# = =; #?????????????? | | ??????# @ % #?????????????? | | ??????# !*%[ #?????????????? | | ??????# % ## #?????????????? | | ??????# ! #??? #?????????????? | | ??????# #??????????????????? | | ??????# [%[ #??????????????????? | | ??????# !%g #??????????????????? | | ??????# * #??????????????????? | | ??????###;;#;;##??????????????????? | | ????????#!%? ???????????????????? | | ????????#[!? ???????????????????? | | ????????# ?####??????????????????? | | ????????# ???????????????????????? | | ?????????Y ???????????????????????? | | ????????? ???????????????????????? | | ????????? ???????????????????????? | | ??????????????????????????????????? | | ??????????????????????????????????? | | ??????????????????????????????????? | | ??????????????????????????????????? | | ??????????????????????????????????? | | ??????????????????????????????????? | | ??????????????????????????????????? | | ??????????????????????????????????? | | ??????????????????????????????????? | +----------------------------------------------------+ Best States ------------- Heat Dissipation 42 Energy Generation 10 Energy Capacity 250 Matter Stores 300 Matter Capacity 300 Sight Range 16 Terrain Scan Density 10 Armor Coverage 150 Resistance: KI 20 Resistance: TH 20 Resistance: EX 20 Resistance: EM 20 Resistance: I 20 Resistance: S 20 Resistance: P 20 Evasion (%) 40 Recoil Reduction 3 Offensive Hacking 10 Item Schematics ----------------- Hacking Suite | -9/Materials | Scanalyzed Robot Schematics ------------------ None Fabricated ------------ Nothing Alien Tech Used ----------------- None Achievements -------------- None Challenges ------------ None Game ------ Seed FluxHardlightSuperbattery Manual? 0 Play Time 00:32:11 Cumulative 79.7 hours Start 2024.09.25 @ 17:38:58 End 2024.09.25 @ 18:15:33 Sessions 1 Manual Loads 0 Difficulty Adventurer Special Mode None Game No. 55 Rogue 0 Adventurer 55 Explorer 0 Win Type - Total 0 Types 0/0/0/0/0/0/0/0/0 Lore% 21 Gallery% 41 Achievement% 35 Wizard Run 0 Options --------- Layout 0 ASCII 0 Keyboard 0 Movement Mouse Keybinds 0 Fullscreen 1 Font 18/SmallcapsGlow Map View 76x50 Zoom Use 0% Tactical HUD 1 Map Filters NONE Filters NONE Steam 1 RUN: b1c91bcd-b273-42db-a0fc-8609826cc5e4